[Event "44th Chess Olympiad Open 2022"]
[Site "Chennai"]
[Date "2022.08.09"]
[Round "11.25"]
[White "Yordanov, Lachezar"]
[Black "Kjartansson, Gudmundur"]
[Result "1/2-1/2"]
[ECO "D45"]
[WhiteElo "2316"]
[BlackElo "2448"]
[Annotator "RC"]
[PlyCount "171"]
[EventDate "2022.07.29"]
[EventType "team-tourn"]
[EventCountry "IND"]
[SourceTitle "playchess.com"]
[Source "ChessBase"]
[SourceQuality "1"]
[WhiteTeam "Bulgaria"]
[BlackTeam "Iceland"]
[WhiteTeamCountry "BUL"]
[BlackTeamCountry "ISL"]
[TimeControl "40/5400+30:1800+30"]

1. d4 {[%emt 0:00:04]} d5 {[%emt 0:00:11]} 2. c4 {[%emt 0:00:06]} e6 {[%emt 0:00:03]} 3. Nc3 {[%emt 0:00:12]} c6 {[%emt 0:00:03]} 4. Nf3 {[%emt 0:01:04]} Nf6 {[%emt 0:00:15]} 5. e3 {[%emt 0:00:21]} a6 {[%emt 0:00:38]} 6. Qc2 {[%emt 0:00:29]} dxc4 {[%emt 0:01:26]} 7. Bxc4 {[%emt 0:00:34]} b5 {[%emt 0:00:53]} 8. Bd3 {[%emt 0:00:07]} Bb7 {[%emt 0:00:13]} 9. O-O {[%emt 0:01:19]} Nbd7 {[%emt 0:00:22]} 10. Rd1 {[%emt 0:01:32]} Qb6 {[%emt 0:01:53]} 11. Ne4 {[%emt 0:02:10]} Nxe4 {[%emt 0:14:23]} 12. Bxe4 {[%emt 0:00:27]} Nf6 {[%emt 0:00:06]} 13. Bd3 {[%emt 0:00:08]} c5 {[%emt 0:00:31]} 14. dxc5 {[%emt 0:00:17]} Bxc5 {[%emt 0:00:10]} 15. b3 {[%emt 0:03:34]} Rc8 {[%emt 0:06:29]} 16. Qe2 {[%emt 0:00:59]} Bb4 {[%emt 0:03:54]} 17. Bb2 {[%emt 0:03:26]} Bc3 {[%emt 0:01:36]} 18. Rac1 {[%emt 0:01:31]} Bxb2 {[%emt 0:00:23]} 19. Rxc8+ {[%emt 0:00:06]} Bxc8 {[%emt 0:00:02]} 20. Qxb2 {[%emt 0:00:09]} O-O {[%emt 0:00:35]} 21. b4 {[%emt 0:01:06]} Bb7 {[%emt 0:00:56]} 22. Nd4 {[%emt 0:13:30]} Bd5 {[%emt 0:01:45]} 23. Nb3 {[%emt 0:09:19]} Bxb3 {[%emt 0:01:39]} 24. Qxb3 {[%emt 0:00:07]} Rc8 {[%emt 0:08:41]} 25. a4 {[%emt 0:06:42]} Nd5 {[%emt 0:01:34]} 26. axb5 {[%emt 0:00:37]} axb5 {[%emt 0:00:13]} 27. h3 {[%emt 0:01:52]} h5 {[%emt 0:04:10]} 28. Qb2 {[%emt 0:02:04]} h4 {[%emt 0:05:19]} 29. Ra1 {[%emt 0:03:43]} Nxe3 {[%emt 0:05:41]} 30. Qe2 {[%emt 0:02:57]} Qd4 {[%emt 0:07:49]} 31. Re1 {[%emt 0:01:45]} Nc4 {[%emt 0:03:17]} 32. Rd1 {[%emt 0:00:36]} Qf4 {[%emt 0:08:47]} 33. Qh5 {[%emt 0:00:38]} f5 {[%emt 0:02:22]} 34. Qe2 {[%emt 0:04:00]} Kf7 {[%emt 0:15:52]} 35. Ra1 {[%emt 0:04:20]} Rc7 {[%emt 0:02:36]} 36. Qh5+ {[%emt 0:04:26]} Kf6 {[%emt 0:00:34]} 37. Qe8 {[%emt 0:02:51]} Qd4 {[%emt 0:02:57]} 38. Re1 {[%emt 0:01:27]} Re7 {[%emt 0:00:39]} 39. Qf8+ {[%emt 0:02:41]} Rf7 {[%emt 0:00:00]} 40. Qe8 {[%emt 0:00:31]} Re7 {[%emt 0:00:24]} 41. Qf8+ {[%emt 0:30:15]} Rf7 {[%emt 0:30:06]} 42. Qe8 {[%emt 0:00:17]} Qd7 {[%emt 0:00:00]} 43. Qxd7 {[%emt 0:00:00]} Rxd7 {[%emt 0:00:00]} 44. Bxc4 {[%emt 0:00:00]} bxc4 {[%emt 0:00:23]} 45. Rc1 {[%emt 0:00:00]} Rd4 {[%emt 0:00:00]} 46. b5 {[%emt 0:00:00]} Ke7 {[%emt 0:00:00]} 47. b6 {[%emt 0:00:00]} Kd7 {[%emt 0:00:00]} 48. Rb1 {[%emt 0:00:00]} Kc8 {[%emt 0:00:00]} 49. Kf1 {[%emt 0:00:00]} Kb7 {[%emt 0:00:00]} 50. Ke2 {[%emt 0:00:00]} Rd6 {[%emt 0:00:00]} 51. Rb4 {[%emt 0:00:00]} Rd4 {[%emt 0:00:00]} 52. Rb1 {[%emt 0:00:00]} g5 {[%emt 0:00:00]} 53. Rb4 {[%emt 0:00:00]} g4 {[%emt 0:00:00]} 54. Rb1 {[%emt 0:00:00]} gxh3 {[%emt 0:01:08]} 55. gxh3 {[%emt 0:00:00]} Rd3 {[%emt 0:02:03]} 56. f3 {[%emt 0:00:00]} Rb3 {[%emt 0:00:25]} 57. Rc1 {[%emt 0:00:00]} Rb4 {[%emt 0:02:15]} 58. Kd2 {[%emt 0:00:00]} Kxb6 {[%emt 0:01:09]} 59. Re1 {[%emt 0:00:00]} Kc5 {[%emt 0:00:50]} 60. Rxe6 {[%emt 0:00:00]} Kd4 {[%emt 0:00:55]} 61. Rd6+ {[%emt 0:00:00]} Ke5 {[%emt 0:00:06]} 62. Rh6 {[%emt 0:00:00]} Ra4 {[%emt 0:01:59]} 63. Kc3 {[%emt 0:00:00]} Kf4 {[%emt 0:00:39]} 64. Rxh4+ {[%emt 0:00:00]} Kxf3 {[%emt 0:00:05]} 65. Rh8 {[%emt 0:00:00]} f4 {[%emt 0:00:45]} 66. h4 {[%emt 0:00:00]} Kf2 {[%emt 0:00:45]} 67. h5 {[%emt 0:00:00]} f3 {[%emt 0:00:25]} 68. h6 {[%emt 0:00:00]} Ra5 {[%emt 0:00:28]} 69. h7 {[%emt 0:00:00]} Ra7 {[%emt 0:00:35]} 70. Kxc4 {[%emt 0:00:00]} Re7 {[%emt 0:00:16]} 71. Kd3 {[%emt 0:00:00]} Rd7+ {[%emt 0:00:13]} 72. Kc2 {[%emt 0:00:00]} Re7 {[%emt 0:00:51]} 73. Kd2 {[%emt 0:00:00]} Re2+ {[%emt 0:00:24]} 74. Kd1 {[%emt 0:00:00]} Re1+ {[%emt 0:00:22]} 75. Kc2 {[%emt 0:00:00]} Rh1 {[%emt 0:00:08]} 76. Kd2 {[%emt 0:00:00]} Rh6 {[%emt 0:00:15]} 77. Kd3 {[%emt 0:00:00]} Rh2 {[%emt 0:00:13]} 78. Kc3 {[%emt 0:00:00]} Rh3 {[%emt 0:00:37]} 79. Kd2 {[%emt 0:00:00]} Rh5 {[%emt 0:00:44]} 80. Kd3 {[%emt 0:00:00]} Rh1 {[%emt 0:00:25]} 81. Kd2 {[%emt 0:00:00]} Rh3 {[%emt 0:00:05]} 82. Kc2 {[%emt 0:00:00]} Rh2 {[%emt 0:00:44]} 83. Kc3 {[%emt 0:00:00]} Rh3 {[%emt 0:00:33]} 84. Kd2 {[%emt 0:00:00]} Kf1 {[%emt 0:00:00]} 85. Rf8 {[%emt 0:00:00]} Rxh7 {[%emt 0:00:00]} 86. Rxf3+ {[%emt 0:00:00]} 1/2-1/2

[Event "44th Chess Olympiad Open 2022"]
[Site "Chennai"]
[Date "2022.08.09"]
[Round "11.26"]
[White "Batsuren, Dambasuren"]
[Black "Tologontegin, Semetey"]
[Result "1-0"]
[ECO "A40"]
[WhiteElo "2518"]
[BlackElo "2378"]
[Annotator "RC"]
[PlyCount "61"]
[EventDate "2022.07.29"]
[EventType "team-tourn"]
[EventCountry "IND"]
[SourceTitle "playchess.com"]
[Source "ChessBase"]
[SourceQuality "1"]
[WhiteTeam "Mongolia"]
[BlackTeam "Kyrgyzstan"]
[WhiteTeamCountry "MGL"]
[BlackTeamCountry "KGZ"]
[TimeControl "40/5400+30:1800+30"]

1. d4 {[%emt 0:00:03]} e6 {[%emt 0:00:05]} 2. c4 {[%emt 0:00:21]} b6 {[%emt 0:03:25]} 3. e4 {[%emt 0:04:51]} Bb7 {[%emt 0:00:00]} 4. Bd3 {[%emt 0:00:12]} Bb4+ {[%emt 0:00:00]} 5. Kf1 {[%emt 0:04:08]} Be7 {[%emt 0:17:38]} 6. Nc3 {[%emt 0:02:06]} c5 {[%emt 0:05:25]} 7. d5 {[%emt 0:00:19]} Bf6 {[%emt 0:03:32]} 8. f4 {[%emt 0:04:28]} d6 {[%emt 0:02:43]} 9. Nf3 {[%emt 0:01:08]} Nd7 {[%emt 0:00:33]} 10. Nb5 {[%emt 0:04:10]} Qb8 {[%emt 0:02:21]} 11. dxe6 {[%emt 0:08:51]} fxe6 {[%emt 0:01:00]} 12. Bc2 {[%emt 0:00:11]} Be7 {[%emt 0:01:01]} 13. Kf2 {[%emt 0:02:43]} e5 {[%emt 0:31:33]} 14. Ng5 {[%emt 0:13:28]} a6 {[%emt 0:07:00]} 15. Nc3 {[%emt 0:01:34]} Bxg5 {[%emt 0:08:43]} 16. Qh5+ {[%emt 0:00:47]} g6 {[%emt 0:01:36]} 17. Qxg5 {[%emt 0:00:07]} Ngf6 {[%emt 0:00:01]} 18. Rf1 {[%emt 0:05:09]} O-O {[%emt 0:01:41]} 19. Kg1 {[%emt 0:01:11]} b5 {[%emt 0:02:18]} 20. f5 {[%emt 0:09:50]} b4 {[%emt 0:05:25]} 21. Nd5 {[%emt 0:00:38]} Nxd5 {[%emt 0:04:25]} 22. exd5 {[%emt 0:00:09]} Qd8 {[%emt 0:00:31]} 23. Qg3 {[%emt 0:03:34]} Kh8 {[%emt 0:00:26]} 24. Bh6 {[%emt 0:00:21]} Rg8 {[%emt 0:00:36]} 25. fxg6 {[%emt 0:00:19]} Qe7 {[%emt 0:00:30]} 26. Rf7 {[%emt 0:01:07]} Qxf7 {[%emt 0:00:05]} 27. gxf7 {[%emt 0:00:04]} Rxg3 {[%emt 0:00:03]} 28. hxg3 {[%emt 0:00:05]} Nf8 {[%emt 0:00:42]} 29. Rf1 {[%emt 0:00:09]} a5 {[%emt 0:01:04]} 30. Rf6 {[%emt 0:00:22]} Rd8 {[%emt 0:00:07]} 31. Re6 {[%emt 0:00:28]} 1-0

[Event "44th Chess Olympiad Open 2022"]
[Site "Chennai"]
[Date "2022.08.09"]
[Round "11.26"]
[White "Gundavaa, Bayarsaikhan"]
[Black "Abdyjapar, Asyl"]
[Result "1-0"]
[ECO "E97"]
[WhiteElo "2503"]
[BlackElo "2306"]
[Annotator "RC"]
[PlyCount "153"]
[EventDate "2022.07.29"]
[EventType "team-tourn"]
[EventCountry "IND"]
[SourceTitle "playchess.com"]
[Source "ChessBase"]
[SourceQuality "1"]
[WhiteTeam "Mongolia"]
[BlackTeam "Kyrgyzstan"]
[WhiteTeamCountry "MGL"]
[BlackTeamCountry "KGZ"]
[TimeControl "40/5400+30:1800+30"]

1. d4 {[%emt 0:00:04]} Nf6 {[%emt 0:00:05]} 2. c4 {[%emt 0:00:06]} g6 {[%emt 0:00:16]} 3. Nc3 {[%emt 0:00:14]} Bg7 {[%emt 0:00:03]} 4. e4 {[%emt 0:01:05]} d6 {[%emt 0:00:03]} 5. Be2 {[%emt 0:00:23]} O-O {[%emt 0:00:06]} 6. Nf3 {[%emt 0:00:37]} e5 {[%emt 0:00:05]} 7. O-O {[%emt 0:00:23]} Nc6 {[%emt 0:00:03]} 8. d5 {[%emt 0:00:12]} Ne7 {[%emt 0:00:03]} 9. b4 {[%emt 0:00:07]} c6 {[%emt 0:00:48]} 10. dxc6 {[%emt 0:00:08]} Nxc6 {[%emt 0:00:22]} 11. Rb1 {[%emt 0:01:22]} Bg4 {[%emt 0:00:30]} 12. Be3 {[%emt 0:01:43]} Bxf3 {[%emt 0:00:28]} 13. Bxf3 {[%emt 0:00:05]} Re8 {[%emt 0:00:11]} 14. Be2 {[%emt 0:06:27]} a6 {[%emt 0:06:32]} 15. f3 {[%emt 0:13:21]} Nd4 {[%emt 0:01:06]} 16. Rf2 {[%emt 0:00:56]} Nd7 {[%emt 0:00:52]} 17. Bf1 {[%emt 0:03:15]} Rc8 {[%emt 0:00:25]} 18. Rc1 {[%emt 0:08:11]} Nb6 {[%emt 0:01:59]} 19. Nb1 {[%emt 0:03:32]} Qd7 {[%emt 0:01:47]} 20. Nd2 {[%emt 0:03:30]} Rc7 {[%emt 0:08:12]} 21. Nb3 {[%emt 0:15:39]} Qa4 {[%emt 0:01:01]} 22. Nxd4 {[%emt 0:05:09]} exd4 {[%emt 0:01:21]} 23. Bxd4 {[%emt 0:00:33]} Qxd1 {[%emt 0:00:17]} 24. Rxd1 {[%emt 0:00:05]} Nxc4 {[%emt 0:00:07]} 25. Bxg7 {[%emt 0:00:24]} Kxg7 {[%emt 0:00:02]} 26. Rc2 {[%emt 0:00:22]} Rec8 {[%emt 0:00:32]} 27. Rdc1 {[%emt 0:01:32]} b5 {[%emt 0:00:07]} 28. Kf2 {[%emt 0:01:35]} Kf6 {[%emt 0:01:45]} 29. Bxc4 {[%emt 0:06:42]} bxc4 {[%emt 0:00:20]} 30. Ke3 {[%emt 0:00:27]} d5 {[%emt 0:00:56]} 31. exd5 {[%emt 0:00:52]} Ke5 {[%emt 0:00:04]} 32. d6 {[%emt 0:03:23]} Kxd6 {[%emt 0:03:17]} 33. Kd4 {[%emt 0:00:05]} Re8 {[%emt 0:00:42]} 34. Rd2 {[%emt 0:00:28]} Re5 {[%emt 0:00:48]} 35. Kc3+ {[%emt 0:05:45]} Ke6 {[%emt 0:00:55]} 36. Rcc2 {[%emt 0:03:19]} Rh5 {[%emt 0:05:06]} 37. g3 {[%emt 0:01:37]} Rf5 {[%emt 0:01:02]} 38. Re2+ {[%emt 0:07:12]} Kf6 {[%emt 0:03:26]} 39. Re3 {[%emt 0:00:07]} Rd5 {[%emt 0:05:31]} 40. Rd2 {[%emt 0:00:51]} Rxd2 {[%emt 0:00:14]} 41. Kxd2 {[%emt 0:30:06]} Rd7+ {[%emt 0:30:05]} 42. Kc3 {[%emt 0:00:09]} Rd1 {[%emt 0:00:06]} 43. Kxc4 {[%emt 0:00:51]} Rd2 {[%emt 0:00:46]} 44. Ra3 {[%emt 0:03:16]} Rxh2 {[%emt 0:00:05]} 45. Rxa6+ {[%emt 0:00:04]} Ke5 {[%emt 0:00:05]} 46. Ra3 {[%emt 0:04:29]} h5 {[%emt 0:00:24]} 47. f4+ {[%emt 0:00:39]} Kd6 {[%emt 0:00:20]} 48. Rd3+ {[%emt 0:00:00]} Kc7 {[%emt 0:00:00]} 49. a4 {[%emt 0:00:00]} f6 {[%emt 0:00:00]} 50. a5 {[%emt 0:00:00]} g5 {[%emt 0:00:00]} 51. fxg5 {[%emt 0:00:00]} fxg5 {[%emt 0:00:00]} 52. Rd5 {[%emt 0:00:00]} g4 {[%emt 0:00:00]} 53. Kb5 {[%emt 0:00:00]} h4 {[%emt 0:00:00]} 54. gxh4 {[%emt 0:00:00]} Rxh4 {[%emt 0:00:00]} 55. Rg5 {[%emt 0:00:00]} Kb8 {[%emt 0:00:00]} 56. Rg8+ {[%emt 0:00:00]} Ka7 {[%emt 0:00:00]} 57. Rg7+ {[%emt 0:00:00]} Kb8 {[%emt 0:00:00]} 58. a6 {[%emt 0:00:00]} Rh5+ {[%emt 0:00:00]} 59. Kb6 {[%emt 0:00:00]} Rh6+ {[%emt 0:00:00]} 60. Ka5 {[%emt 0:00:00]} Rh5+ {[%emt 0:00:00]} 61. b5 {[%emt 0:00:00]} g3 {[%emt 0:00:00]} 62. Rxg3 {[%emt 0:00:00]} Ka7 {[%emt 0:00:00]} 63. Rg7+ {[%emt 0:00:00]} Ka8 {[%emt 0:00:00]} 64. Rd7 {[%emt 0:00:00]} Rg5 {[%emt 0:00:00]} 65. Kb6 {[%emt 0:00:00]} Rg6+ {[%emt 0:00:00]} 66. Kc5 {[%emt 0:00:00]} Rg5+ {[%emt 0:00:00]} 67. Rd5 {[%emt 0:00:00]} Rg1 {[%emt 0:00:00]} 68. b6 {[%emt 0:00:00]} Rc1+ {[%emt 0:00:00]} 69. Kd4 {[%emt 0:00:00]} Rd1+ {[%emt 0:00:00]} 70. Ke5 {[%emt 0:00:00]} Re1+ {[%emt 0:00:00]} 71. Kf6 {[%emt 0:00:00]} Rf1+ {[%emt 0:00:00]} 72. Ke7 {[%emt 0:00:00]} Re1+ {[%emt 0:00:00]} 73. Kd7 {[%emt 0:00:00]} Ra1 {[%emt 0:00:00]} 74. Rc5 {[%emt 0:00:00]} Rd1+ {[%emt 0:00:00]} 75. Kc8 {[%emt 0:00:00]} Rb1 {[%emt 0:00:00]} 76. b7+ {[%emt 0:00:00]} Ka7 {[%emt 0:00:00]} 77. Rc7 {[%emt 0:00:00]} 1-0

[Event "44th Chess Olympiad Open 2022"]
[Site "Chennai"]
[Date "2022.08.09"]
[Round "11.26"]
[White "Markov, Mikhail"]
[Black "Amartuvshin, Ganzorig"]
[Result "1-0"]
[ECO "E08"]
[WhiteElo "2333"]
[BlackElo "2409"]
[Annotator "RC"]
[PlyCount "71"]
[EventDate "2022.07.29"]
[EventType "team-tourn"]
[EventCountry "IND"]
[SourceTitle "playchess.com"]
[Source "ChessBase"]
[SourceQuality "1"]
[WhiteTeam "Kyrgyzstan"]
[BlackTeam "Mongolia"]
[WhiteTeamCountry "KGZ"]
[BlackTeamCountry "MGL"]
[TimeControl "40/5400+30:1800+30"]

1. c4 {[%emt 0:00:03]} Nf6 {[%emt 0:00:06]} 2. Nf3 {[%emt 0:00:13]} e6 {[%emt 0:00:08]} 3. g3 {[%emt 0:00:06]} d5 {[%emt 0:00:09]} 4. d4 {[%emt 0:00:14]} Bb4+ {[%emt 0:00:13]} 5. Bd2 {[%emt 0:00:47]} Be7 {[%emt 0:00:09]} 6. Bg2 {[%emt 0:02:27]} O-O {[%emt 0:00:10]} 7. O-O {[%emt 0:02:00]} c6 {[%emt 0:00:22]} 8. Qc2 {[%emt 0:02:03]} Nbd7 {[%emt 0:00:16]} 9. Bf4 {[%emt 0:04:31]} b6 {[%emt 0:00:21]} 10. cxd5 {[%emt 0:00:55]} cxd5 {[%emt 0:00:34]} 11. Qc6 {[%emt 0:05:10]} Ba6 {[%emt 0:00:33]} 12. Nc3 {[%emt 0:00:05]} Qc8 {[%emt 0:01:36]} 13. Qa4 {[%emt 0:09:21]} Qb7 {[%emt 0:01:43]} 14. Nb5 {[%emt 0:01:24]} Rac8 {[%emt 0:02:42]} 15. Rfc1 {[%emt 0:00:27]} Ne4 {[%emt 0:05:30]} 16. Nc7 {[%emt 0:14:56]} Nb8 {[%emt 0:00:34]} 17. Nxa6 {[%emt 0:00:18]} Nxa6 {[%emt 0:00:28]} 18. Ne5 {[%emt 0:00:21]} b5 {[%emt 0:17:32]} 19. Qd1 {[%emt 0:06:16]} Nd6 {[%emt 0:01:59]} 20. h4 {[%emt 0:05:00]} Nc4 {[%emt 0:06:27]} 21. Nd3 {[%emt 0:04:57]} Qb6 {[%emt 0:02:38]} 22. b3 {[%emt 0:03:47]} Nd6 {[%emt 0:01:00]} 23. Rxc8 {[%emt 0:00:47]} Rxc8 {[%emt 0:00:15]} 24. Rc1 {[%emt 0:00:11]} Rxc1 {[%emt 0:08:45]} 25. Qxc1 {[%emt 0:03:01]} h6 {[%emt 0:10:51]} 26. Bxd6 {[%emt 0:02:15]} Qxd6 {[%emt 0:01:09]} 27. Qc8+ {[%emt 0:00:06]} Bd8 {[%emt 0:00:49]} 28. Ne5 {[%emt 0:00:32]} Nc7 {[%emt 0:13:59]} 29. Nd7 {[%emt 0:08:32]} Qe7 {[%emt 0:04:07]} 30. e4 {[%emt 0:01:03]} dxe4 {[%emt 0:06:39]} 31. Bxe4 {[%emt 0:01:19]} Ne8 {[%emt 0:00:19]} 32. Bc6 {[%emt 0:01:20]} b4 {[%emt 0:03:11]} 33. Qa8 {[%emt 0:03:38]} Nf6 {[%emt 0:01:05]} 34. Ne5 {[%emt 0:02:13]} a5 {[%emt 0:07:53]} 35. Bf3 {[%emt 0:00:29]} Qf8 {[%emt 0:00:07]} 36. Nc6 {[%emt 0:00:05]} 1-0

[Event "44th Chess Olympiad Open 2022"]
[Site "Chennai"]
[Date "2022.08.09"]
[Round "11.26"]
[White "Zhakshylykov, Erzhan"]
[Black "Gan-Erdene, Sugar"]
[Result "1/2-1/2"]
[ECO "B67"]
[WhiteElo "2332"]
[BlackElo "2428"]
[Annotator "RC"]
[PlyCount "49"]
[EventDate "2022.07.29"]
[EventType "team-tourn"]
[EventCountry "IND"]
[SourceTitle "playchess.com"]
[Source "ChessBase"]
[SourceQuality "1"]
[WhiteTeam "Kyrgyzstan"]
[BlackTeam "Mongolia"]
[WhiteTeamCountry "KGZ"]
[BlackTeamCountry "MGL"]
[TimeControl "40/5400+30:1800+30"]

1. e4 {[%emt 0:00:05]} c5 {[%emt 0:00:07]} 2. Nf3 {[%emt 0:00:16]} d6 {[%emt 0:00:18]} 3. d4 {[%emt 0:00:12]} cxd4 {[%emt 0:00:06]} 4. Nxd4 {[%emt 0:00:06]} Nf6 {[%emt 0:00:06]} 5. Nc3 {[%emt 0:00:08]} Nc6 {[%emt 0:00:26]} 6. Bg5 {[%emt 0:00:42]} e6 {[%emt 0:00:52]} 7. Qd2 {[%emt 0:01:04]} a6 {[%emt 0:02:50]} 8. O-O-O Bd7 {[%emt 0:03:42]} 9. f3 Be7 {[%emt 0:11:14]} 10. h4 {[%emt 0:08:06]} h6 {[%emt 0:00:32]} 11. Be3 {[%emt 0:20:10]} h5 {[%emt 0:00:25]} 12. Bg5 Qc7 {[%emt 0:12:11]} 13. Be2 {[%emt 0:24:41]} b5 {[%emt 0:12:32]} 14. Bxb5 {[%emt 0:13:23]} axb5 {[%emt 0:01:34]} 15. Ndxb5 {[%emt 0:00:00]} Qb8 {[%emt 0:25:41]} 16. Nxd6+ {[%emt 0:00:00]} Kf8 {[%emt 0:02:33]} 17. f4 {[%emt 0:21:41]} Be8 {[%emt 0:09:25]} 18. e5 {[%emt 0:01:10]} Bxd6 {[%emt 0:01:01]} 19. exd6 {[%emt 0:05:13]} Bd7 {[%emt 0:00:52]} 20. Bxf6 {[%emt 0:00:15]} gxf6 {[%emt 0:00:04]} 21. a3 {[%emt 0:00:28]} f5 {[%emt 0:00:21]} 22. Qe2 {[%emt 0:01:17]} Qb6 {[%emt 0:05:56]} 23. Rh3 {[%emt 0:01:00]} Rb8 {[%emt 0:01:16]} 24. Na4 {[%emt 0:01:27]} Qa7 {[%emt 0:00:35]} 25. Nc3 {[%emt 0:00:08]} 1/2-1/2

[Event "44th Chess Olympiad Open 2022"]
[Site "Chennai"]
[Date "2022.08.09"]
[Round "11.27"]
[White "Priasmoro, Novendra"]
[Black "Rahman, Ziaur"]
[Result "0-1"]
[ECO "B42"]
[WhiteElo "2494"]
[BlackElo "2424"]
[Annotator "RC"]
[PlyCount "82"]
[EventDate "2022.07.29"]
[EventType "team-tourn"]
[EventCountry "IND"]
[SourceTitle "playchess.com"]
[Source "ChessBase"]
[SourceQuality "1"]
[WhiteTeam "Indonesia"]
[BlackTeam "Bangladesh"]
[WhiteTeamCountry "INA"]
[BlackTeamCountry "BAN"]
[TimeControl "40/5400+30:1800+30"]

1. e4 {[%emt 0:00:04]} c5 {[%emt 0:01:06]} 2. Nf3 {[%emt 0:00:13]} e6 {[%emt 0:01:06]} 3. d4 {[%emt 0:00:37]} cxd4 {[%emt 0:00:04]} 4. Nxd4 {[%emt 0:00:05]} a6 {[%emt 0:00:13]} 5. Bd3 {[%emt 0:01:50]} Bc5 {[%emt 0:00:06]} 6. Nb3 {[%emt 0:00:12]} Ba7 {[%emt 0:00:05]} 7. Qe2 {[%emt 0:00:59]} Ne7 {[%emt 0:01:38]} 8. Be3 {[%emt 0:02:27]} O-O {[%emt 0:00:35]} 9. Bxa7 {[%emt 0:02:26]} Rxa7 {[%emt 0:03:16]} 10. Qe3 {[%emt 0:00:14]} Nbc6 {[%emt 0:01:01]} 11. N1d2 {[%emt 0:00:15]} e5 {[%emt 0:04:27]} 12. h4 {[%emt 0:12:13]} d6 {[%emt 0:08:35]} 13. h5 {[%emt 0:00:20]} h6 {[%emt 0:01:30]} 14. g4 {[%emt 0:02:40]} f6 {[%emt 0:06:41]} 15. O-O-O {[%emt 0:00:34]} b5 {[%emt 0:01:46]} 16. Nf3 {[%emt 0:10:22]} Rb7 {[%emt 0:03:43]} 17. Nh4 {[%emt 0:01:05]} a5 {[%emt 0:08:14]} 18. Kb1 {[%emt 0:09:59]} a4 {[%emt 0:03:15]} 19. Nc1 {[%emt 0:00:05]} a3 {[%emt 0:04:01]} 20. b3 {[%emt 0:00:31]} Qa5 {[%emt 0:01:04]} 21. Ne2 {[%emt 0:03:28]} Bxg4 {[%emt 0:04:25]} 22. Rdg1 {[%emt 0:09:22]} Bxe2 {[%emt 0:00:47]} 23. Qxh6 {[%emt 0:03:34]} Ng6 {[%emt 0:05:17]} 24. Rxg6 {[%emt 0:11:50]} Qc3 {[%emt 0:01:06]} 25. Qc1 {[%emt 0:00:16]} Bxd3 {[%emt 0:00:47]} 26. cxd3 {[%emt 0:00:05]} Qxd3+ {[%emt 0:00:14]} 27. Qc2 {[%emt 0:00:02]} Qxc2+ {[%emt 0:00:50]} 28. Kxc2 {[%emt 0:00:02]} Rc8 {[%emt 0:02:48]} 29. Kd2 {[%emt 0:00:09]} Nd4 {[%emt 0:02:14]} 30. Rc1 {[%emt 0:03:28]} Rxc1 {[%emt 0:05:08]} 31. Kxc1 {[%emt 0:02:19]} Rc7+ {[%emt 0:00:17]} 32. Kd1 {[%emt 0:07:02]} Nxb3 {[%emt 0:01:48]} 33. Nf5 {[%emt 0:07:48]} Rc1+ {[%emt 0:05:09]} 34. Ke2 {[%emt 0:00:04]} Nd4+ {[%emt 0:00:21]} 35. Nxd4 {[%emt 0:06:30]} exd4 {[%emt 0:00:04]} 36. h6 {[%emt 0:00:09]} Rc2+ {[%emt 0:07:26]} 37. Kd3 {[%emt 0:00:04]} Rxa2 {[%emt 0:00:30]} 38. Rxg7+ {[%emt 0:00:04]} Kh8 {[%emt 0:00:04]} 39. Kxd4 {[%emt 0:03:26]} Rb2 {[%emt 0:03:14]} 40. Ra7 {[%emt 0:03:05]} Rb4+ {[%emt 0:01:11]} 41. Kc3 {[%emt 0:12:23]} Ra4 {[%emt 0:00:16]} 0-1